Cogmind - Beta 15 @@@ ROGUE MODE // 2025.07.08 @ 14:25:52 Player: LameThyst Result: Destroyed by L-31 Rogue with Katana Performance ------------- Evolutions (1) 500 Regions Visited (2) 400 Robots Destroyed (51) 255 Value Destroyed (898) 898 Prototype IDs (3) 60 Alien Tech Used (0) 0 Bonus (0) 0 TOTAL SCORE: 2113 Bonus ------- None Cogmind --------- Core Integrity 0/400 Matter 290/300 Energy 265/265 System Corruption 4% Temperature Cool (0) Movement Core (350) Ox6 Location -9/Materials Parts ------- > --- POWER (1) -------- Improved Ion Engine > --- PROPULSION (3) --- (None) > --- UTILITY (3) ------ Medium Storage Unit Seismic Detector > --- WEAPON (2) ------- Katana > --- INVENTORY (10) --- Cooling System Sensor Array Signal Interpreter Light Armor Plating Hacking Suite Peak State ------------ > --- POWER ------------ Improved Ion Engine > --- PROPULSION ------- Improved Aluminum Leg Improved Aluminum Leg Improved Aluminum Leg > --- UTILITY ---------- Medium Storage Unit Structural Scanner Seismic Detector > --- WEAPON ----------- Improved Medium Laser Heavy Assault Rifle > --- INVENTORY -------- Improved Ion Engine Improved Aluminum Leg Cooling System Sensor Array Signal Interpreter Light Armor Plating Hacking Suite Advanced Beam Cannon Heavy Assault Rifle Katana [Rating: 18] Favorites ----------- Power Improved Ion Engine Engine Improved Ion Engine Propulsion Aluminum Leg Leg Aluminum Leg Flight Unit Improved Flight Unit Utility Seismic Detector Device Seismic Detector Storage Medium Storage Unit Weapon Assault Rifle Energy Gun Improved Medium Laser Energy Cannon Advanced Beam Cannon Ballistic Gun Assault Rifle Special Weapon Mining Laser Slashing Weapon Katana Build | -11 -10 -9 ------- Run | Yrd Mat Mat Slots Evolved 2 | . . 2 Power . | . . . Propulsion 1 | . . 1 Utility 1 | . . 1 Weapon . | . . . Parts Attached 44 | 9 14 21 Power 8 | 1 3 4 Engine 8 | 1 3 4 Core . | . . . Reactor . | . . . Propulsion 13 | 2 4 7 Treads . | . . . Leg 12 | 2 4 6 Wheel . | . . . Hover . | . . . Flight 1 | . . 1 Utility 8 | 3 3 2 Device 5 | 2 2 1 Storage 3 | 1 1 1 Processor . | . . . Hackware . | . . . Protection . | . . . Artifact . | . . . Weapon 15 | 3 4 8 Energy Gun 5 | 1 2 2 Energy Cannon 1 | . . 1 Ballistic Gun 7 | 2 2 3 Ballistic Cannon . | . . . Launcher . | . . . Special Weapon 1 | . . 1 Impact Weapon . | . . . Slashing Weapon 1 | . . 1 Piercing Weapon . | . . . Special Melee Weapon . | . . . Unidentified Prototypes 3 | . . 3 Parts Lost 11 | . 1 10 Power . | . . . Propulsion 5 | . . 5 Utility 1 | . . 1 Weapon 5 | . 1 4 Highest Loss Streak 9 | . 1 9 To Critical Strikes . | . . . Average Backups 8 | 4 8 9 Power . | . 1 . Propulsion 1 | 1 2 . Utility 3 | . 1 5 Weapon 2 | 1 2 2 Tool/Special . | . . . Unused Backups 20 | 2 8 10 Power 1 | . 1 . Propulsion 4 | . 4 . Utility 9 | . 3 6 Weapon 6 | 2 . 4 Tool/Special . | . . . Average Slot Usage (%) 98 | . 98 98 Engine 11 | . 14 10 Leg 31 | . 28 32 Device 19 | . 14 21 Storage 11 | . 14 11 Energy Gun 9 | . 8 10 Ballistic Gun 12 | . 17 10 Peak Build Rating 18 | 7 8 18 Average Rating 11 | 6 7 14 On Entrance 5 | . 7 8 Naked Turns . | . . . Heaviest Build 26 | 12 20 26 Greatest Support 39 | 20 20 39 Greatest Overweight (x) 2 | . . 2 Average Overweight (x) . | . . . Largest Inventory Capacity 10 | 8 10 10 Average Capacity 9 | 7 9 10 Most Carried 10 | 6 10 10 Average Carried 8 | 4 8 9 Final Capacity 10 | 8 10 10 Final Carried 10 | 6 10 5 Class Distribution -------------------- 83% | Mutant 16% | Scavenger-Mutant Dominant Class ---------------- Mutant | -10/Materials Mutant | -9/Materials Resources | -11 -10 -9 ----------- Run | Yrd Mat Mat Matter Collected 1291 | 408 303 580 Remotely . | . . . Salvage Created 1465 | 232 350 883 Parts 110 | 20 28 62 Haulers Intercepted 4 | . . 4 Recyclers Shooed . | . . . Parts Field Recycled . | . . . Retrieved Matter . | . . . Parts Self-Destructed . | . . . Prevented . | . . . Kills | -11 -10 -9 ------- Run | Yrd Mat Mat Combat Hostiles Destroyed 34 | . 13 21 Melee 2 | . . 2 Guns 30 | . 11 19 AOE 2 | . 2 . Classes Destroyed 8 | 3 3 2 Worker 5 | 4 1 . Tunneler 6 | 6 . . Hauler 4 | . . 4 Recycler 1 | 1 . . Watcher 1 | . 1 . Swarmer 18 | . 8 10 Grunt 9 | . 5 4 Sentry 7 | . . 7 Best Kill Streak 5 | 2 5 5 Combat Bots Only 5 | . 5 4 Max Kills in Single Turn 2 | 1 2 2 Gunslinging 1 | . . 1 Exploded 2 | . 2 . Melee 1 | . . 1 Uniques/NPCs Destroyed . | . . . Combat | -11 -10 -9 -------- Run | Yrd Mat Mat Hostile Shots Fired 213 | . 74 139 Missed 45 | . 21 24 Hits 168 | . 53 115 Melee 13 | . . 13 Projectile 155 | . 53 102 Critical Strikes 7 | . . 7 Damage Taken 2136 | . 521 1615 Core 571 | . 143 428 Absorbed by Shields . | . . . Core Remaining (%) 71 | 100 42 . Volleys Fired 132 | 27 34 71 Largest 2 | 2 2 2 Hottest 100 | 40 70 100 Shots Fired 250 | 54 59 137 Gun 246 | 54 59 133 Cannon 3 | . . 3 Launcher . | . . . Special 1 | . . 1 Kinetic 161 | 54 40 67 Thermal 79 | . 9 70 Explosive . | . . . Electromagnetic 10 | . 10 . Robot Hit Streak 21 | 12 7 21 Robot Miss Streak 4 | 2 3 4 Penetration Max . | . . . Secondary Targets 6 | . 1 5 Max Gunslinging Chain 1 | . 1 1 Shots Hit Robots 173 | 33 37 103 Core Hits 70 | 14 20 36 Critical Kills . | . . . Critical Parts Destroyed 2 | 1 . 1 Critical Strikes 6 | 1 1 4 Burn 4 | . 1 3 Destroy 2 | 1 . 1 Melee Attacks 11 | . . 11 Impact . | . . . Slashing 11 | . . 11 Piercing . | . . . Sneak Attacks . | . . . Combat Hostiles . | . . . Follow-up Attacks . | . . . Damage Inflicted 2680 | 373 550 1757 Guns 2321 | 373 460 1488 Cannons . | . . . Explosions 90 | . 90 . Melee 269 | . . 269 Ramming . | . . . Kinetic 1377 | 373 317 687 Thermal 964 | . 163 801 Explosive . | . . . Electromagnetic 70 | . 70 . Impact . | . . . Slashing 269 | . . 269 Piercing . | . . . Highest Corruption 4 | . . 4 Average Corruption 4 | . . 4 Corruption Purged . | . . . Corruption Blocked . | . . . Effects 15 | . . 15 Message Errors 4 | . . 4 Matter Fused 2 | . . 2 Heat Flow Errors 3 | . . 3 Parts Rejected 1 | . . 1 Data Loss (minor) 2 | . . 2 Data Loss (major) 1 | . . 1 Alerts 1 | . . 1 Weapon Failures 1 | . . 1 Overload Shots . | . . . Overflow Damage 6 | . 6 . Projectiles . | . . . Explosions 6 | . 6 . Melee . | . . . Knockbacks . | . . . Impact . | . . . Kinetic . | . . . Secondary . | . . . Self-Inflicted Damage 28 | . 28 . Shots 1 | . 1 . Rammed . | . . . Targets Rammed . | . . . Kicked . | . . . Crushed . | . . . Highest Temperature 266 | . 54 266 Average Temperature 45 | . 22 48 Received Heat Transfer 534 | . 120 414 Siege Activations . | . . . Martial Activations . | . . . Shielding Activations . | . . . Robots Disrupted . | . . . Combat Hostiles . | . . . Robots Corrupted . | . . . Combat Hostiles . | . . . Parts Fried . | . . . Impact Corruptions . | . . . Robots Melted . | . . . Combat Hostiles . | . . . Parts Melted 7 | . 2 5 Heat Transferred 2407 | . 446 1961 Parts Sabotaged . | . . . Parts Stolen . | . . . Parts Stripped . | . . . Power Chain Reactions 1 | . 1 . Alert | -11 -10 -9 ------- Run | Yrd Mat Mat Maximum Alert Level 1 | . 1 1 Low Security (%) 72 | 100 90 55 Level 1 27 | . 9 44 Level 2 . | . . . Level 3 . | . . . Level 4 . | . . . Level 5 . | . . . High Security . | . . . Max Security . | . . . Peak Influence 264 | 10 215 264 Initial 72 | . . 72 Average 123 | 1 129 156 Influence Increases 1185 | 55 414 716 Destroy 0b10 Robot/C 680 | . 260 420 Destroy 0b10 Robot/NC 85 | 55 10 20 Destroy Leader 170 | . 62 108 Successful Hack 60 | . 17 43 Disable Machine 30 | . 15 15 Destroy Structure 10 | . 5 5 Lose Combat Pursuer 150 | . 45 105 Influence Decreases 991 | 55 242 694 Entered New Map 100 | . . 100 Time Decay 781 | 55 232 494 Lost Part 110 | . 10 100 Squads Dispatched 5 | . 4 1 Investigation 2 | . 2 . Extermination . | . . . Reinforcement 3 | . 2 1 Assault . | . . . Garrison . | . . . Intercept . | . . . Searches Triggered . | . . . Construction Impeded . | . . . Haulers Reinforced . | . . . Active Scanning Responses . | . . . Cargo Convoy Interrupts . | . . . Stealth | -11 -10 -9 --------- Run | Yrd Mat Mat Distress Signals 4 | . 1 3 Communications Jammed . | . . . Distress Signals . | . . . Times Spotted 57 | . 20 37 Peak Tracking Total 8 | . 5 8 Tactical Retreats 7 | . 2 5 Traps | -11 -10 -9 ------- Run | Yrd Mat Mat Traps Triggered 4 | . 1 3 Indirectly . | . . . Trap Hack Attempts . | . . . Triggered . | . . . Disarmed . | . . . Reprogrammed . | . . . Reused . | . . . Traps Extracted . | . . . Installed . | . . . Triggered . | . . . Machines | -11 -10 -9 ---------- Run | Yrd Mat Mat Machines Disabled 2 | . 1 1 Max in Single Turn 1 | . 1 1 Machines Repaired . | . . . Machines Dismantled . | . . . Machines Sabotaged . | . . . Overloaded Fab Kills . | . . . Hacking | -11 -10 -9 --------- Run | Yrd Mat Mat Machines Accessed 12 | . 3 9 Terminals 11 | . 3 8 Fabricators . | . . . Repair Stations . | . . . Recycling Units 1 | . . 1 Scanalyzers . | . . . Garrison Access . | . . . Total Hacks 37 | . 12 25 Successful 21 | . 7 14 Failed 16 | . 5 11 Catastrophic 3 | . 1 2 Database Lockouts . | . . . Manual 35 | . 12 23 Terminals 35 | . 12 23 Fabricators . | . . . Repair Stations . | . . . Recycling Units 2 | . . 2 Scanalyzers . | . . . Garrison Access . | . . . Terminal Hacks 1 | . . 1 Robot Analysis 1 | . . 1 Fabricator Hacks . | . . . Repair Station Hacks . | . . . Recycling Unit Hacks . | . . . Scanalyzer . | . . . Garrison Access Hacks . | . . . Unauthorized Hacks 19 | . 7 12 Terminals 19 | . 7 12 Botnet 8 | . 3 5 Operators 1 | . 1 . Skim 10 | . 3 7 Fabricators . | . . . Repair Stations . | . . . Recycling Units . | . . . Scanalyzers . | . . . Garrison Access . | . . . Data Cores Recovered . | . . . Used . | . . . Hacking Detections 12 | . 3 9 Full Trace Events 2 | . 2 . Feedback Events . | . . . Feedback Blocked . | . . . Robot Schematics Acquired . | . . . Robots Built . | . . . Authchips . | . . . Time . | . . . Total Robot Build Rating . | . . . Part Schematics Acquired . | . . . Parts Built . | . . . Authchips . | . . . Time . | . . . Total Part Build Rating . | . . . Parts Repaired . | . . . Time . | . . . Parts Recycled . | . . . Recycled Matter . | . . . Retrieved Matter . | . . . Retrieved Components . | . . . Parts Scanalyzed . | . . . Part Schematics Acquired . | . . . Parts Damaged . | . . . Bothacking | -11 -10 -9 ------------ Run | Yrd Mat Mat Used RIF Installer . | . . . Robots Hacked . | . . . Non-combat . | . . . Combat . | . . . Robot Hacks Applied . | . . . Relay Couplers Released . | . . . Fabnet Peak Effective % . | . . . Robots Rewired . | . . . Allies Hacked . | . . . Hacks Repelled . | . . . Allies | -11 -10 -9 -------- Run | Yrd Mat Mat Total Allies . | . . . Largest Group . | . . . Highest-Rated Group . | . . . Highest-Rated Ally . | . . . Total Orders . | . . . Ally Attacks . | . . . Total Damage . | . . . Kills . | . . . Allies Corrupted . | . . . Allies Melted . | . . . Intel | -11 -10 -9 ------- Run | Yrd Mat Mat Active Infowar (turns) 2158 | 276 577 1305 Structural 1280 | . 2 1278 Seismic 2156 | 276 575 1305 Robot Analysis Total 1 | . . 1 Derelict Logs Recovered . | . . . Drone Launches . | . . . Drone Recoveries . | . . . Exploration | -11 -10 -9 ------------- Run | Yrd Mat Mat Turns Passed 2263 | 381 577 1305 Spaces Moved 1325 | 237 347 741 Core 4 | 4 . . Treads . | . . . Legs 1321 | 233 347 741 Wheels . | . . . Hover . | . . . Flight . | . . . Fastest Speed 50 | 50 120 120 Average Speed 120 | 118 120 120 Slowest Speed 260 | 120 120 260 Overloaded Moves . | . . . Propulsion Burnouts . | . . . Robots Hopped . | . . . Potential Cave-ins . | . . . Cave-ins Triggered . | . . . Exploration Rate (%) 41 | 10 60 55 Regions Visited 2 Branch Regions . Pre-discovered Areas 1 | . . 1 Known Exits Taken . | . . . Unknown Exits Taken 2 | 1 1 . Scrap Searched . | . . . Spaces Dug 1 | . . 1 Terrain Destroyed 6 | . 5 1 Melee 1 | . . 1 Projectile . | . . . AOE 5 | . 5 . Terrain Rammed . | . . . Walls Destroyed . | . . . Machines Disabled . | . . . Actions | -11 -10 -9 --------- Run | Yrd Mat Mat Total 1744 | 284 451 1009 Wait 118 | . 21 97 Move 1323 | 236 346 741 Hop . | . . . Pick Up 40 | 8 13 19 Fast Attach 17 | 7 . 10 Attach 11 | . 1 10 Detach . | . . . Swap 43 | 3 19 21 Drop 49 | 3 17 29 Fire 132 | 27 34 71 Melee 11 | . . 11 Ram . | . . . Kick . | . . . Crush . | . . . Escape Stasis . | . . . Rewire . | . . . Trap . | . . . Miscellaneous . | . . . Route ------- -11/Scrapyard -10/Materials (discovered 3 exits: *Mat x2 / [*Sub]) -9/Materials (discovered 5 exits: *Mat x3 / *Min x2) History --------- Turn | Location | Event 9 | -11/Scrapyard | Discovered new exit (range 15) 382 | -11/Scrapyard | Entered Materials 383 | -10/Materials | Build established: Mutant 735 | -10/Materials | Discovered new exit (range 10) 860 | -10/Materials | Discovered new exit (range 11) 906 | -10/Materials | Core integrity fell below 50% 957 | -10/Materials | Discovered new exit (range 12) 959 | -10/Materials | Entered another Materials area 959 | -9/Materials | Evolved 2 slots: Propulsion x1, Utility x1 1609 | -9/Materials | Discovered new exit (range 5) 1645 | -9/Materials | Learned location of Zion (-6) 1710 | -9/Materials | Learned location of 1 exit from Recycling 1766 | -9/Materials | Learned 4 Recycling zone layouts 1847 | -9/Materials | Identified exit to Materials 1850 | -9/Materials | Discovered new exit (range 13) 1874 | -9/Materials | Identified exit to Mines 1874 | -9/Materials | Learned location of 1 exit from Materials 2218 | -9/Materials | Core integrity fell below 50% 2252 | -9/Materials | Core integrity fell below 20% 2264 | -9/Materials | Destroyed by L-31 Rogue with Katana Last Messages --------------- 02234_ Imp. Medium Laser destroyed. 02235_ Imp. Aluminum Leg destroyed. 02238_ Structural Scanner destroyed. 02239_ G-34 Mercenary destroyed. 02241_ K-01 Serf collects debris. 02242_ Y-45 Defender destroyed. 02244_ Destroyed Heat Sink. 02245_ K-01 Serf collects debris. 02245_ M-13 Machinist repairs L-31 Rogue. 02249_ K-01 Serf collects debris. 02249_ M-13 Machinist repairs L-31 Rogue Imp. Aluminum Leg. 02251_ Imp. Aluminum Leg destroyed. 02252_ K-01 Serf collects debris. 02256_ Imp. Aluminum Leg destroyed. 02261_ M-13 Machinist fits Backup Plating I on G-34 Mercenary. 02263_ M-13 Machinist repairs G-34 Mercenary Aluminum Leg. 02263_ Imp. Aluminum Leg destroyed. Map ----- +----------------------------------------------------+ | | | | | | | | | | | | | ?????????????????#########???????????????????????? | | ?????????????????#########???????????????????????? | | ????????########?## T ##??????????#########????? | | ????????########### !##??????????#########????? | | ????????## ##### ############## ##????? | | #???????## + + [############## ##????? | | ########## # # """%+!! ##????? | | ########## # # """=#### ##### ### ##????? | | # # # """ ####+##### ### ##????? | | # # + """ # # ##########????? | | # + # """ # # ##########????? | | = =! # # # # # ##????????????? | | %* = = # # ####### # ##????????????? | | *! !!!![[###### ## # ##????????????? | | % !!![ +! + # ##????????????? | | !!![[###### ## # ##???>????????? | | ######+############# ## # ##????????????? | | ## ##### ## =%* # ##????????????? | | ## #### ##g####+## ##????????????? | | ## #### @lm ##????????????? | | ## #### ! ##????????????? | | ## #### ##????????????? | | ## #### #### ##????????????? | | ########+################### ##????????????? | | ###### #### ? # !! ##????????????? | | ##????????????? # !! ????????????? | | T ##????????????? + k ???????????? | | ##????????????? # / ??????????? | | ###### ##????????????? # ##### ??????????? | | ####### ###?????????????### #######??????????? | | ??? # ###?????????????### ###??????????????? | | "???? # ##??????????????? # ##???????????????? | | "???? + ##??????????????? # ##???????????????? | | "???! # ##??????????????? # ?????????????????? | | ???? # ##??????????????? # ?????????????????? | | ????## # ?????????????????????????????????????? | | #????## # ?????????????????????????????????????? | | ????? # # ?????????????????????????????????????? | | ??????? # ?????????????????????????????????????? | | ??????? + ?????????????????????????????????????? | | ??????? # ?????????????????????????????????????? | | ?????? # ?????????????????????????????????????? | | #######??????????????????????????????????????????? | | ###### ??????????????????????????????????????????? | +----------------------------------------------------+ Best States ------------- Heat Dissipation 28 Energy Generation 12 Energy Capacity 265 Matter Stores 300 Matter Capacity 300 Sight Range 16 Terrain Scan Density 10 Evasion (%) 55 Item Schematics ----------------- None Robot Schematics ------------------ None Fabricated ------------ Nothing Repaired ---------- Nothing Alien Tech Used ----------------- None Achievements -------------- None Challenges ------------ None Game ------ Seed ImprovedIntegrityFrame Manual? 0 Play Time 00:28:12 Cumulative 65.1 hours Start 2025.07.08 @ 04:57:00 End 2025.07.08 @ 14:25:52 Sessions 2 Manual Loads 0 Difficulty Rogue Special Mode None Game No. 70 Rogue 70 Adventurer 0 Explorer 0 Win Type - Total 0 Types 0/0/0/0/0/0/0/0/0/0 Lore% 38 Gallery% 38 Achievement% 30 Wizard Run 0 Options --------- Layout 1 ASCII 0 Keyboard 0 Movement Mouse Keybinds 0 Fullscreen 2 Font 48/Smallcaps Map View 50x35 Zoom Use 0% Tactical HUD 1 Map Filters NONE Filters NONE Steam 0 RUN: 3b17f20a-f2ca-483a-bdb1-5ca38761007f